bitfinex/quotes_SOLUSD_20240822
["timestamp","ask_amount","ask_price","bid_price","bid_amount"]
[1724332510132,20.0,143.29,143.25,15.76]
[1724332510940,20.0,143.29,143.26,1.39587649]
[1724332511245,7.2888427,143.31,143.27,15.76]
[1724332511645,6.3422,143.34,143.29,15.76]
[1724332511844,13.61587506,143.34,143.29,15.76]
[1724332512632,7.27367506,143.34,143.3,1.39556455]
[1724332513233,7.27367506,143.34,143.29,15.76]
[1724332513532,15.7406,143.36,143.31,15.76]
[1724332514050,7.28493012,143.37,143.32,1.39527418]
[1724332515158,14.26013012,143.37,143.29,15.76]
[1724332515331,20.0,143.36,143.29,15.76]
[1724332516153,20.0,143.36,143.3,1.39543878]
[1724332516546,26.9754,143.36,143.29,15.76]
[1724332517755,26.9754,143.36,143.3,1.39542017]
[1724332518050,20.0,143.36,143.3,1.39542017]
[1724332518432,26.9755,143.36,143.3,1.39542017]
[1724332518955,26.9755,143.36,143.31,15.76]
[1724332520928,20.0,143.36,143.31,15.76]
[1724332521130,20.0,143.36,143.25,44.2985371]
[1724332521350,6.977,143.33,143.25,15.3124]
[1724332521563,20.0,143.32,143.26,15.76]
[1724332524054,7.28717166,143.31,143.26,15.76]
[1724332528462,7.28717166,143.31,143.27,1.39566782]
[1724332528953,20.0,143.32,143.27,46.39566782]
[1724332529667,7.28650712,143.34,143.28,15.76]
[1724332529844,7.28650712,143.34,143.3,15.76]
[1724332530162,15.5855,143.36,143.31,1.39526382]
[1724332530367,22.870639,143.36,143.31,1.39526382]
[1724332532256,20.0,143.35,143.31,1.39526382]
[1724332535864,20.0,143.35,143.3,15.76]
[1724332536439,20.0,143.35,143.27,45.0]
[1724332536440,20.0,143.35,143.28,15.76]
[1724332536643,6.9765,143.34,143.28,15.76]
[1724332536857,26.9769,143.33,143.26,15.76]
[1724332537265,15.76,143.32,143.25,15.3124]
[1724332537472,20.0,143.31,143.22,24.7461371]
[1724332538355,26.9778,143.31,143.22,24.7461371]
[1724332539774,26.9778,143.31,143.23,45.0]
[1724332540479,20.0,143.31,143.24,15.76]
[1724332540774,7.28818302,143.3,143.24,15.76]
[1724332540976,20.0,143.29,143.24,15.76]
[1724332541163,7.28818302,143.3,143.24,15.76]
[1724332541372,7.28818302,143.3,143.26,15.76]
[1724332541565,6.6256,143.32,143.27,1.39572695]
[1724332541769,20.0,143.31,143.27,1.39572695]
[1724332542277,20.0,143.31,143.26,15.76]
[1724332542584,20.0,143.31,143.23,45.0]
[1724332542585,20.0,143.31,143.24,15.76]
[1724332542749,20.0,143.31,143.25,45.0]
[1724332543471,42.7382,143.31,143.22,15.76]
[1724332543862,42.7382,143.31,143.23,45.0]
[1724332546878,35.76,143.31,143.23,45.0]
[1724332547576,42.738,143.31,143.23,45.0]
[1724332547766,6.9784,143.3,143.23,45.0]
[1724332547969,20.0,143.29,143.23,45.0]
[1724332548371,20.0,143.29,143.22,15.76]
[1724332548566,26.9789,143.29,143.22,15.76]
[1724332549265,20.0,143.29,143.23,1.39607671]
[1724332549699,20.0,143.29,143.23,46.39607671]
[1724332551169,26.979,143.29,143.23,45.0]
[1724332551595,0.12549,143.28,143.22,15.76]
[1724332552004,0.12549,143.28,143.2,15.76]
[1724332552299,7.41524166,143.28,143.21,45.0]
[1724332552489,20.0,143.27,143.21,45.0]
[1724332553379,20.0,143.27,143.2,15.76]
[1724332555593,49.2545,143.27,143.18,32.4241]
[1724332555797,15.6324,143.25,143.18,15.76]
[1724332556011,20.0,143.24,143.18,15.76]
[1724332556293,20.0,143.24,143.17,15.76]
[1724332556882,20.0,143.24,143.19,6.9833]
[1724332557900,15.76,143.23,143.13,6.0552]
[1724332558101,20.0,143.22,143.17,6.9843]
[1724332558786,20.0,143.22,143.18,6.9841]
[1724332558995,20.0,143.23,143.19,1.39665543]
[1724332559206,20.12549,143.24,143.19,1.39665543]
[1724332559499,20.0,143.24,143.2,6.9831]
[1724332561598,15.6324,143.25,143.22,6.9822]
[1724332561774,6.5144,143.27,143.22,15.76]
[1724332562103,6.5144,143.27,143.2,15.76]
[1724332562274,13.4943,143.27,143.21,6.9823]
[1724332562608,7.29066145,143.26,143.21,8.37873461]
[1724332562919,7.29066145,143.26,143.22,6.9822]
[1724332563207,7.29066145,143.26,143.23,8.37786117]
[1724332563921,7.29066145,143.26,143.22,15.76]
[1724332564221,7.29066145,143.26,143.2,15.76]
[1724332564394,20.12549,143.25,143.18,15.76]
[1724332565022,20.0,143.25,143.17,15.6449]
[1724332565220,20.0,143.25,143.18,60.76]
[1724332565899,20.0,143.25,143.21,6.9827]
[1724332566419,20.0,143.25,143.22,8.37849979]
[1724332566629,20.0,143.25,143.22,6.9822]
[1724332566993,7.29066145,143.26,143.23,6.9817]
[1724332567316,7.29066145,143.26,143.23,8.37795541]
[1724332567495,7.29066145,143.26,143.23,1.39625541]
[1724332567700,7.29066145,143.26,143.23,1.39617917]
[1724332568843,7.29066145,143.26,143.18,60.76]
[1724332570120,20.0,143.25,143.18,60.76]
[1724332570519,20.0,143.25,143.2,6.9831]
[1724332572222,20.0,143.25,143.15,28.9861371]
[1724332572223,15.76,143.23,143.15,15.76]
[1724332572418,15.76,143.23,143.18,6.9838]
[1724332572616,38.4466,143.23,143.17,6.9845]
[1724332572831,15.76,143.21,143.17,6.9845]
[1724332574521,33.38772844,143.22,143.17,6.9845]
[1724332575617,13.38772844,143.22,143.16,6.985]
[1724332575816,20.0,143.21,143.16,6.985]
[1724332576219,20.0,143.21,143.15,6.9855]
[1724332577143,20.0,143.21,143.16,6.9851]
[1724332577432,20.0,143.21,143.1,39.4]
[1724332577433,0.12549,143.2,143.15,6.9856]
[1724332577838,39.4,143.19,143.09,21.9266999]
[1724332578044,39.4,143.19,143.13,6.9866]
[1724332578355,20.12549,143.18,143.09,15.8818999]
[1724332578543,35.75999,143.18,143.12,6.9867]
[1724332578748,15.75999,143.18,143.12,6.9867]
[1724332578951,15.75999,143.18,143.13,6.9866]
[1724332582030,15.6345,143.18,143.14,1.39718756]
[1724332582225,28.82412844,143.22,143.13,39.4]
[1724332582429,28.82412844,143.22,143.14,46.3967942]
[1724332582734,28.82412844,143.22,143.17,6.9847]
[1724332582933,28.82412844,143.22,143.18,6.9841]
[1724332583330,28.82412844,143.22,143.17,6.9845]
[1724332584242,20.0,143.21,143.17,6.9845]
[1724332584967,7.29269702,143.2,143.17,6.9845]
[1724332586254,7.29269702,143.2,143.15,1.39684329]
[1724332586255,7.29269702,143.2,143.18,6.9841]
[1724332586846,7.29269702,143.2,143.17,6.9846]
[1724332588942,7.29269702,143.2,143.17,6.9846]
[1724332590740,7.29269702,143.2,143.15,1.39685594]
[1724332591059,21.7213,143.26,143.2,6.9828]
[1724332591366,28.7016,143.26,143.2,6.9828]
[1724332591564,7.29004269,143.25,143.19,6.9835]
[1724332592251,20.0,143.24,143.19,6.9835]
[1724332594468,20.0,143.24,143.2,6.9831]
[1724332594646,20.0,143.24,143.21,6.9825]
[1724332594850,20.0,143.24,143.2,6.9831]
[1724332595847,7.29004269,143.25,143.21,1.39649441]
[1724332596048,7.29004269,143.25,143.22,6.9821]
[1724332596247,7.29004269,143.25,143.23,8.37794616]
[1724332596640,7.29004269,143.25,143.23,1.39624616]
[1724332596853,7.29004269,143.25,143.22,46.39608753]
[1724332597067,7.29004269,143.25,143.23,15.75]
[1724332597240,16.0224,143.29,143.23,15.75]
[1724332597962,16.0224,143.29,143.22,45.0]
[1724332598260,16.0224,143.29,143.23,1.39597944]
[1724332599059,20.0,143.28,143.23,1.39597944]
[1724332599563,20.0,143.28,143.22,45.0]
[1724332599737,20.0,143.28,143.21,45.0]
[1724332599933,20.0,143.28,143.22,1.39595945]
[1724332600161,20.0,143.28,143.21,45.0]
[1724332600962,20.0,143.28,143.22,1.3959786]
[1724332601264,13.62148548,143.3,143.22,40.7459786]
[1724332601448,7.28818548,143.3,143.23,45.0]
[1724332601653,7.28818548,143.3,143.24,1.39581413]
[1724332602561,22.2471,143.33,143.24,1.39581413]
[1724332602759,20.0,143.32,143.24,1.39581413]
[1724332602962,27.28565272,143.32,143.24,1.39581413]
[1724332605851,27.28565272,143.32,143.25,16.2088]
[1724332605852,7.28565272,143.32,143.25,16.2088]
[1724332606053,22.7336,143.37,143.26,85.99644057]
[1724332606258,22.7336,143.37,143.27,1.3954231]
[1724332606467,7.28524463,143.35,143.27,1.3954231]
[1724332607266,7.28524463,143.35,143.26,84.60098]
[1724332607447,20.0,143.34,143.26,84.60098]
[1724332607865,20.0,143.34,143.26,45.25098]
[1724332610074,20.0,143.34,143.27,1.39549136]
[1724332611964,20.0,143.34,143.27,7.58269136]
[1724332612163,7.28524463,143.35,143.28,45.0]
[1724332612473,6.9739,143.39,143.29,1.64621578]
[1724332612689,6.9739,143.39,143.3,1.39518005]
[1724332612857,7.28322328,143.37,143.3,1.39518005]
[1724332614177,20.0,143.36,143.3,1.39518005]
[1724332615714,20.0,143.36,143.3,16.68278005]
[1724332616002,7.28322328,143.37,143.3,16.68278005]
[1724332616003,7.28322328,143.37,143.31,45.0]
[1724332616302,7.28322328,143.37,143.32,1.39510464]
[1724332616597,7.28322328,143.37,143.33,1.39510424]
[1724332617294,7.28322328,143.37,143.31,45.0]
[1724332618995,7.28322328,143.37,143.32,1.39510585]
[1724332619180,7.28322328,143.37,143.33,1.39500168]
[1724332619381,13.305,143.41,143.33,1.39500168]
[1724332619593,27.2831928,143.4,143.33,1.39500168]
[1724332619786,7.2831928,143.4,143.33,1.39500168]
[1724332620088,7.2831928,143.4,143.32,1.39491217]
[1724332620284,7.2831928,143.4,143.33,1.39491277]
[1724332620604,22.0495,143.43,143.33,1.39491277]
[1724332620773,7.28180915,143.41,143.33,46.39491277]
[1724332623594,7.28180915,143.41,143.34,0.12549]
[1724332624099,7.28180915,143.41,143.33,45.0]
[1724332624303,14.25480915,143.41,143.33,45.0]
[1724332624896,6.9736,143.4,143.33,45.0]
[1724332625310,14.25490915,143.41,143.34,1.39502376]
[1724332626412,14.25490915,143.41,143.33,45.0]
[1724332628300,26.9737,143.4,143.33,45.0]
[1724332628503,42.6937,143.4,143.33,45.0]
[1724332628803,42.6937,143.4,143.34,1.39502006]
[1724332629104,42.6937,143.4,143.33,45.0]
[1724332630009,42.6937,143.4,143.34,1.39502165]
[1724332630214,35.72,143.4,143.33,45.0]
[1724332630382,35.72,143.4,143.32,6.6129]
[1724332630383,15.72,143.38,143.32,6.6129]
[1724332631012,15.72,143.38,143.33,1.39518764]
[1724332631198,7.27253444,143.39,143.33,62.11518764]
[1724332631405,7.27253444,143.39,143.33,60.72]
[1724332632709,7.27253444,143.39,143.33,45.0]
[1724332633395,7.27253444,143.39,143.34,1.39496237]
[1724332633787,20.0,143.4,143.34,1.39496237]
[1724332634016,30.7973,143.43,143.34,1.39496237]
[1724332634017,7.2705512,143.41,143.34,1.39496237]
[1724332634309,20.0,143.4,143.34,1.39496237]
[1724332636113,20.0,143.4,143.35,15.4949]
[1724332636302,20.0,143.4,143.36,46.39480894]
[1724332636692,20.0,143.4,143.35,15.4949]
[1724332636895,15.72,143.39,143.32,23.0465]
[1724332638205,15.72,143.39,143.33,1.39508349]
[1724332638601,26.9738,143.4,143.32,23.0465]
[1724332638801,26.9738,143.4,143.33,45.0]
[1724332639891,26.9738,143.4,143.34,1.39496458]
[1724332640813,20.0,143.4,143.34,1.39496458]
[1724332641008,7.2705512,143.41,143.34,1.39496458]
[1724332641198,7.2705512,143.41,143.34,40.68496458]
[1724332641423,7.2705512,143.41,143.35,45.0]
[1724332641709,7.2705512,143.41,143.36,1.39473139]
[1724332643121,7.2705512,143.41,143.35,45.0]
[1724332643416,7.2705512,143.41,143.32,62.3365]
[1724332644699,7.2705512,143.41,143.33,45.0]
[1724332645539,7.2705512,143.41,143.34,1.52035141]
[1724332645705,7.2705512,143.41,143.34,1.64584141]
[1724332646030,7.2705512,143.41,143.33,45.0]
[1724332646223,7.2705512,143.41,143.34,1.64571986]
[1724332646805,7.2705512,143.41,143.33,45.0]
[1724332647805,7.2705512,143.41,143.34,1.39481849]
[1724332648310,7.2705512,143.41,143.33,45.0]
[1724332650829,46.5605512,143.41,143.32,23.0465]
[1724332651116,53.5336512,143.41,143.32,23.0465]
[1724332651329,14.2436512,143.41,143.32,23.0465]
[1724332651501,14.2436512,143.41,143.32,62.3365]
[1724332651705,7.2705512,143.41,143.32,62.3365]
[1724332652125,7.2705512,143.41,143.33,45.25098]
[1724332653004,7.2705512,143.41,143.34,1.39481326]
[1724332653727,7.2705512,143.41,143.33,45.25098]
[1724332655000,7.2705512,143.41,143.34,1.39481372]
[1724332656532,14.2435512,143.41,143.33,45.25098]
[1724332656827,14.2435512,143.41,143.34,1.39481358]
[1724332657028,7.2705512,143.41,143.34,1.39481358]
[1724332661113,7.2705512,143.41,143.35,0.12549]
[1724332661318,7.2705512,143.41,143.35,40.81015533]
[1724332661520,6.7653,143.45,143.36,45.12549]
[1724332661735,14.0348114,143.45,143.37,1.5199237]
[1724332662633,14.0348114,143.45,143.37,17.2199237]
[1724332662820,14.0348114,143.45,143.38,45.0]
[1724332663711,14.0348114,143.45,143.39,1.39443297]
[1724332664012,14.0348114,143.45,143.38,45.0]
[1724332664321,14.0348114,143.45,143.39,0.12549]
[1724332664622,14.0348114,143.45,143.38,45.0]
[1724332664822,15.7,143.44,143.38,45.0]
[1724332667641,14.0348114,143.45,143.39,1.39446467]
[1724332667935,14.0348114,143.45,143.4,1.39434241]
[1724332668247,0.5,143.45,143.4,46.39434241]
[1724332668622,0.5,143.45,143.4,45.0]
[1724332669921,15.7,143.44,143.35,15.7]
[1724332670250,15.7,143.42,143.33,15.9541]
[1724332670422,22.6726,143.42,143.33,15.9541]
[1724332671641,22.2966,143.44,143.34,60.7]
[1724332671816,20.0,143.43,143.34,60.7]
[1724332672824,20.0,143.43,143.35,0.25098]
[1724332673726,20.0,143.43,143.35,1.64557823]
[1724332673926,20.0,143.43,143.36,15.7]
[1724332674246,20.0,143.43,143.37,45.0]
[1724332676063,6.5966,143.44,143.37,45.0]
[1724332676354,6.5966,143.44,143.38,17.09453951]
[1724332676527,6.5966,143.44,143.39,45.0]
[1724332676729,6.5966,143.44,143.4,1.39438842]
[1724332677522,6.5966,143.44,143.39,45.0]
[1724332677947,0.5,143.45,143.4,1.39443899]
[1724332678151,20.5,143.45,143.4,1.39443899]
[1724332678664,0.5,143.45,143.4,1.39443899]
[1724332681043,0.5,143.45,143.39,45.0]
[1724332681359,0.5,143.45,143.4,17.09427431]
[1724332681529,0.5,143.45,143.41,45.0]
[1724332681730,0.5,143.45,143.42,1.39423271]
[1724332682131,0.5,143.45,143.41,45.0]
[1724332682532,0.5,143.45,143.37,15.7]
[1724332682942,7.76926734,143.45,143.37,15.7]
[1724332683258,23.46926734,143.45,143.37,15.7]
[1724332683637,23.46926734,143.45,143.38,1.39447326]
[1724332683848,7.76926734,143.45,143.38,46.39447326]
[1724332684050,7.76926734,143.45,143.39,0.25098]
[1724332684348,7.76926734,143.45,143.39,0.12549]
[1724332684750,7.76926734,143.45,143.39,17.21977416]
[1724332685048,7.76926734,143.45,143.4,45.0]
[1724332685240,0.5,143.45,143.41,1.39428077]
[1724332688353,0.5,143.45,143.41,17.09428077]
[1724332688560,0.5,143.45,143.42,45.0]
[1724332688753,0.5,143.45,143.43,1.39410268]
[1724332690566,0.5,143.45,143.43,17.09410268]
[1724332690764,0.5,143.45,143.44,45.0]
[1724332692841,0.5,143.45,143.44,46.39396664]
[1724332693257,0.5,143.45,143.44,45.0]
[1724332697470,0.5,143.45,143.44,46.39400438]
[1724332701975,0.5,143.45,143.44,45.0]
[1724332703755,0.5,143.45,143.44,46.39396318]
[1724332706072,0.5,143.45,143.44,46.51945318]
[1724332706279,0.5,143.45,143.44,46.64494318]
[1724332706879,0.5,143.45,143.44,45.25098]
[1724332707464,0.5,143.45,143.44,46.64458121]
[1724332707662,29.20759802,143.54,143.45,15.0812]
[1724332707862,29.20759802,143.54,143.48,15.7]
[1724332708056,29.20759802,143.54,143.45,15.0812]
[1724332708259,29.20759802,143.54,143.46,60.95098]
[1724332710254,36.17439802,143.54,143.46,60.95098]
[1724332710460,15.7,143.53,143.43,15.7]
[1724332711074,22.6673,143.53,143.43,15.7]
[1724332711879,6.9677,143.52,143.44,45.0]
[1724332712384,15.7,143.47,143.39,6.6465]
[1724332712985,6.5781,143.48,143.4,15.7]
[1724332714082,6.5781,143.48,143.41,45.25098]
[1724332714796,16.1927,143.49,143.42,17.09404958]
[1724332714995,16.1927,143.49,143.43,46.39397683]
[1724332715876,21.5055,143.52,143.44,15.7]
[1724332716087,21.5055,143.52,143.45,46.3937676]
[1724332716389,21.5055,143.52,143.46,1.39377866]
[1724332716963,28.76883392,143.52,143.46,1.39377866]
[1724332719671,28.76883392,143.52,143.46,17.09377866]
[1724332719873,28.76883392,143.52,143.47,45.0]
[1724332723890,22.64673392,143.52,143.48,1.39379722]
[1724332724188,7.26333392,143.52,143.47,45.0]
[1724332726989,7.26333392,143.52,143.48,1.3936346]
[1724332727187,22.3764,143.55,143.48,17.0936346]
[1724332727383,20.0,143.54,143.49,46.39355576]
[1724332727687,22.67377892,143.55,143.49,46.39355576]
[1724332729275,7.26367892,143.55,143.49,46.39355576]
[1724332733200,7.26367892,143.55,143.49,45.0]
[1724332735690,7.26367892,143.55,143.5,17.09343066]
[1724332735902,23.4292,143.58,143.5,17.09343066]
[1724332736201,7.26279973,143.57,143.51,45.0]
[1724332736386,29.7130999,143.6,143.52,33.03898404]
[1724332736587,29.7130999,143.6,143.53,45.0]
[1724332736799,36.97413553,143.6,143.54,1.39308171]
[1724332736988,30.01033553,143.6,143.54,1.39308171]
[1724332737479,15.08443553,143.6,143.54,1.39308171]
[1724332737996,8.12073553,143.6,143.54,1.39308171]
[1724332738379,15.7,143.59,143.53,45.0]
[1724332738881,15.7,143.55,143.49,6.1712]
[1724332739195,15.7,143.57,143.49,6.1712]
[1724332740299,15.7,143.57,143.5,45.0]
[1724332741101,22.6653,143.57,143.5,45.0]
[1724332743086,15.7,143.57,143.5,45.0]
[1724332744707,6.9649,143.58,143.51,1.393337]
[1724332745009,20.0,143.57,143.52,1.39327672]
[1724332745589,20.0,143.58,143.52,1.39327672]
[1724332746116,26.9647,143.58,143.5,45.0]
[1724332746319,15.7,143.57,143.5,45.0]
[1724332747227,22.96200617,143.57,143.5,45.0]
[1724332751244,7.26200617,143.57,143.52,15.8597]
[1724332751408,7.26200617,143.57,143.53,46.39318462]
[1724332751597,15.7,143.59,143.53,46.39318462]
[1724332751803,7.26113336,143.58,143.53,46.39318462]
[1724332752617,15.7,143.57,143.53,45.0]
[1724332753342,15.7,143.57,143.52,15.8597]
[1724332753648,15.7,143.55,143.49,6.1712]
[1724332754839,15.7,143.55,143.5,1.39349641]
[1724332754999,15.7,143.55,143.5,46.39349641]
[1724332755431,15.7,143.55,143.5,45.0]
[1724332757637,15.7,143.53,143.5,45.0]
[1724332757842,15.7,143.53,143.48,15.2902]
[1724332758051,15.7,143.53,143.49,45.0]
[1724332758221,15.7,143.53,143.48,15.2902]
[1724332758743,15.7,143.53,143.49,1.39366182]
[1724332758916,15.7,143.55,143.49,1.39366182]
[1724332759537,15.7,143.55,143.49,46.39366182]
[1724332761722,15.7,143.55,143.49,45.0]
[1724332764167,15.7,143.55,143.48,15.2902]
[1724332765224,22.9636735,143.56,143.48,15.2902]
[1724332765428,20.0,143.55,143.49,45.0]
[1724332765855,22.9636735,143.56,143.49,45.0]
[1724332768221,29.9294735,143.56,143.49,45.0]
[1724332772354,15.7,143.54,143.49,45.0]
[1724332772730,15.7,143.54,143.45,6.6334]
[1724332772731,15.7,143.52,143.45,6.6334]
[1724332773153,15.7,143.5,143.44,15.439]
[1724332773336,15.7,143.48,143.44,15.439]
[1724332776076,13.54142877,143.53,143.44,15.439]
[1724332776077,20.50872877,143.53,143.44,15.439]
[1724332776387,35.7,143.52,143.45,46.39406332]
[1724332776544,20.0,143.52,143.46,1.39390469]
[1724332777773,7.26502877,143.53,143.46,1.39390469]
[1724332778548,7.26502877,143.53,143.45,45.0]
[1724332779175,46.1878,143.52,143.45,45.0]
[1724332779477,66.1878,143.52,143.45,45.0]
[1724332781483,59.22,143.52,143.45,46.3939731]
[1724332781978,59.22,143.52,143.45,45.0]
[1724332782668,66.1877,143.52,143.45,45.0]
[1724332783182,39.22,143.5,143.45,45.0]
[1724332793761,7.27682437,143.49,143.45,45.0]
[1724332795091,7.27682437,143.49,143.46,1.39406798]
[1724332799471,7.27682437,143.49,143.45,61.1353]
[1724332801370,15.69,143.49,143.45,61.1353]
[1724332803010,15.69,143.47,143.42,6.3814]
[1724332803303,15.69,143.47,143.41,16.1568]
[1724332804077,15.69,143.45,143.41,16.1568]
[1724332805600,15.69,143.45,143.42,45.0]
[1724332806299,15.69,143.45,143.38,6.113]
[1724332806615,15.69,143.43,143.38,6.113]
[1724332807105,15.69,143.41,143.37,15.9348]
[1724332808487,39.29,143.41,143.37,15.9348]
[1724332808697,39.29,143.41,143.38,45.0]
[1724332811807,46.56464502,143.41,143.38,45.0]
[1724332813013,7.27464502,143.41,143.38,45.0]
[1724332813409,6.9716,143.44,143.38,46.39470252]
[1724332813707,27.27598771,143.43,143.38,46.39470252]
[1724332815195,7.27598771,143.43,143.38,45.0]
[1724332815395,39.29,143.47,143.39,1.3947012]
[1724332815908,7.27521378,143.45,143.39,7.4364012]
[1724332816104,7.27521378,143.45,143.4,46.3944409]
[1724332818713,45.3671,143.49,143.4,46.3944409]
[1724332818942,7.27896263,143.47,143.4,46.3944409]
[1724332819121,20.0,143.46,143.4,46.3944409]
[1724332821212,20.0,143.46,143.4,45.0]
[1724332825321,20.0,143.46,143.4,46.39444423]
[1724332825516,20.0,143.46,143.41,16.6205]
[1724332825704,7.27896263,143.47,143.42,46.39421113]
[1724332825902,7.27896263,143.47,143.42,46.39427673]
[1724332826523,7.27896263,143.47,143.42,45.0]
[1724332828920,7.27896263,143.47,143.41,16.6205]
[1724332828921,20.0,143.46,143.41,16.6205]
[1724332829505,7.27943694,143.45,143.41,16.6205]
[1724332830301,7.27943694,143.45,143.42,45.0]
[1724332830501,22.98943694,143.45,143.42,45.0]
[1724332831521,7.27943694,143.45,143.42,45.0]
[1724332831922,20.0,143.46,143.42,46.3943611]
[1724332832119,7.28206181,143.47,143.43,1.39435483]
[1724332832626,6.9689,143.5,143.43,1.39435483]
[1724332832826,7.28185999,143.49,143.43,1.39435483]
[1724332834158,7.28185999,143.49,143.45,15.2966]
[1724332834343,7.28185999,143.49,143.46,85.88466468]
[1724332834511,46.2057,143.56,143.46,85.88466468]
[1724332834833,7.27913056,143.54,143.46,85.88466468]
[1724332836012,7.27913056,143.54,143.46,105.88466468]
[1724332836216,262.8648,143.58,143.48,45.3744]
[1724332836415,7.27855906,143.56,143.49,46.39342252]
[1724332837229,10.5668328,143.59,143.5,15.5841]
[1724332837428,7.27665954,143.58,143.51,46.39331742]
[1724332837614,7.27665954,143.58,143.52,1.39331796]
[1724332838428,7.27665954,143.58,143.51,45.0]
[1724332838429,53.48135954,143.58,143.51,45.0]
[1724332838714,20.0,143.57,143.51,45.0]
[1724332839039,39.24,143.56,143.51,45.0]
[1724332840627,20.0,143.57,143.51,45.0]
[1724332840935,20.0,143.57,143.51,46.39338573]
[1724332841425,20.0,143.57,143.52,1.39334563]
[1724332841766,20.0,143.57,143.51,45.0]
[1724332841929,46.33159,143.56,143.5,15.5841]
[1724332843021,20.0,143.57,143.5,15.5841]
[1724332843221,20.0,143.57,143.51,45.0]
[1724332846126,20.0,143.57,143.52,1.3934702]
[1724332846332,20.0,143.57,143.51,45.0]
[1724332847934,7.27792014,143.56,143.51,45.0]
[1724332849444,7.27792014,143.56,143.51,46.3934894]
[1724332850634,20.0,143.57,143.51,45.0]
[1724332850849,27.28049033,143.57,143.51,45.0]
[1724332851042,39.24,143.56,143.51,45.0]
[1724332851248,46.2057,143.56,143.51,45.0]
[1724332851432,46.2057,143.56,143.5,15.5841]
[1724332851635,26.9662,143.55,143.5,15.5841]
[1724332852045,20.0,143.55,143.5,15.5841]
[1724332852339,26.9663,143.55,143.5,15.5841]
[1724332853054,20.0,143.55,143.5,15.5841]
[1724332853430,26.9663,143.55,143.5,15.5841]
[1724332854235,46.2067,143.54,143.48,6.1344]
[1724332854464,39.24,143.52,143.47,16.5364]
[1724332855341,6.9671,143.53,143.44,6.5917]
[1724332855342,39.24,143.5,143.44,22.6382]
[1724332856577,46.2077,143.52,143.44,22.6382]
[1724332856753,20.0,143.51,143.45,45.0]
[1724332857446,26.9681,143.51,143.45,45.0]
[1724332858277,20.0,143.51,143.45,45.0]
[1724332859272,20.0,143.51,143.45,46.39402417]
[1724332859777,20.0,143.51,143.46,1.39399872]
[1724332859949,20.0,143.52,143.46,1.39399872]
[1724332860578,20.0,143.52,143.45,45.0]
[1724332861138,7.28012924,143.51,143.45,45.0]
[1724332861377,7.28012924,143.51,143.46,1.39387282]
[1724332861748,20.0,143.52,143.46,1.39387282]
[1724332861965,20.0,143.53,143.46,1.39387282]
[1724332862175,7.27963979,143.52,143.46,1.39387282]
[1724332862350,20.0,143.51,143.46,1.39387282]
[1724332864889,20.0,143.51,143.45,45.0]
[1724332867080,39.24,143.5,143.44,22.6382]
[1724332867301,39.24,143.48,143.41,6.5306]
[1724332867495,46.2096,143.48,143.41,6.5306]
[1724332867668,39.24,143.46,143.41,6.5306]
[1724332868346,39.24,143.46,143.4,15.2847]
[1724332868775,0.12549,143.49,143.4,15.2847]
[1724332868776,13.3241,143.5,143.4,15.2847]
[1724332868979,6.9682,143.51,143.41,40.6345067]
[1724332869195,20.12549,143.5,143.41,40.6345067]
[1724332869486,20.12549,143.5,143.41,39.24]
[1724332870081,20.12549,143.5,143.42,45.0]
[1724332870570,20.0,143.5,143.42,45.0]